bitfinex/quotes_ETHUSD_20220201
["timestamp","ask_amount","ask_price","bid_price","bid_amount"]
[1643681406322,0.69464584,2689.1,2688.4,0.92987]
[1643681406323,1.29700196,2688.8,2688.4,0.92987]
[1643681406519,1.29700196,2688.7,2688.4,0.92987]
[1643681406721,1.29700196,2688.6,2688.4,0.92987]
[1643681406918,1.29700196,2688.5,2688.4,0.92987]
[1643681407125,1.9916478,2689.1,2688.4,0.92987]
[1643681407427,1.9916478,2689.0,2688.4,0.92987]
[1643681407621,1.29700196,2688.9,2688.4,0.92987]
[1643681407821,1.29700196,2688.8,2688.4,0.92987]
[1643681408057,0.69464584,2689.0,2688.4,0.92987]
[1643681408621,0.69464584,2689.0,2688.4,1.92987]
[1643681409052,1.29700196,2688.9,2688.5,0.1861]
[1643681409253,1.29700196,2688.8,2688.5,0.372]
[1643681409455,1.29700196,2688.7,2688.5,0.372]
[1643681409757,1.29700196,2688.6,2688.5,0.372]
[1643681409962,0.69464584,2689.2,2688.5,2.6656]
[1643681410368,1.29700196,2689.2,2688.6,1.535]
[1643681410559,1.29700196,2689.1,2688.7,2.60354362]
[1643681410759,1.29700196,2689.3,2688.8,1.0]
[1643681410957,1.29700196,2689.2,2688.9,6.24798673]
[1643681411159,0.69464584,2689.8,2689.1,0.1861]
[1643681411366,0.69464584,2689.6,2689.1,2.21010325]
[1643681411562,1.30203117,2689.5,2689.1,2.48449486]
[1643681411762,1.30203117,2689.4,2689.1,0.672]
[1643681411962,1.30203117,2689.3,2689.1,0.672]
[1643681412161,1.30203117,2689.2,2689.1,1.60156]
[1643681412370,1.99667701,2689.7,2689.1,4.58652993]
[1643681412621,1.30203117,2689.6,2689.1,2.60156]
[1643681412821,1.30203117,2689.5,2689.1,2.60156]
[1643681413025,1.30203117,2689.4,2689.1,2.60156]
[1643681413368,1.30203117,2689.3,2689.1,4.56303736]
[1643681413521,0.69464584,2689.8,2689.1,4.46096612]
[1643681413522,1.30203117,2689.2,2689.1,4.46096612]
[1643681413721,1.30203117,2689.2,2689.1,2.41549]
[1643681413926,1.30203117,2689.2,2689.1,4.38923749]
[1643681414525,0.69464584,2689.9,2689.1,4.57513749]
[1643681414722,0.69464584,2689.9,2689.3,1.5295]
[1643681414931,0.69464584,2689.9,2689.3,1.71543]
[1643681415324,1.99079521,2690.0,2689.3,1.71543]
[1643681415523,1.99079521,2690.0,2689.1,1.0]
[1643681415524,0.69464584,2689.9,2689.1,1.0]
[1643681415725,0.31770921,2689.5,2689.0,0.1859]
[1643681415927,1.29614937,2689.4,2689.0,0.1859]
[1643681416124,1.48204937,2689.4,2689.0,0.1859]
[1643681416364,1.29614937,2689.3,2689.0,0.1859]
[1643681416566,0.1859,2689.2,2689.0,0.1859]
[1643681416769,1.29614937,2689.1,2688.6,1.1782]
[1643681416967,1.29614937,2689.1,2688.6,1.11573]
[1643681417169,1.29614937,2689.0,2688.6,3.64539]
[1643681417367,0.69464584,2689.6,2688.6,3.64539]
[1643681417368,1.29614937,2688.9,2688.7,1.8593]
[1643681417616,0.1859,2689.7,2688.7,1.8593]
[1643681417617,0.88054584,2689.7,2688.8,9.12742637]
[1643681417768,1.1373,2689.8,2688.9,1.0]
[1643681417769,1.2950265,2689.6,2688.9,1.0]
[1643681417968,1.2950265,2689.5,2689.0,0.18593]
[1643681418366,1.2950265,2689.4,2689.0,0.18593]
[1643681418566,1.2950265,2689.3,2689.0,0.18593]
[1643681418767,1.98967234,2689.7,2689.0,0.18593]
[1643681418968,1.2950265,2689.6,2689.0,0.18593]
[1643681419168,1.2950265,2689.5,2689.0,1.1155]
[1643681419368,1.2950265,2689.4,2689.0,1.4155]
[1643681419568,1.2950265,2689.3,2689.0,1.4155]
[1643681419768,1.2950265,2689.2,2689.0,0.11085]
[1643681420004,1.83194584,2689.8,2689.1,0.11085]
[1643681420005,1.1373,2689.8,2689.1,0.11085]
[1643681420212,1.26430938,2689.7,2689.1,0.11085]
[1643681420405,2.13884492,2689.7,2689.1,0.11085]
[1643681420606,1.26430938,2689.6,2689.1,0.11085]
[1643681421209,1.1373,2689.8,2689.1,0.11085]
[1643681421210,1.26430938,2689.5,2689.1,0.11085]
[1643681421409,1.26430938,2689.4,2689.1,0.11085]
[1643681421609,1.26430938,2689.3,2689.1,0.11085]
[1643681421823,1.1373,2689.8,2689.2,0.11085]
[1643681422013,1.26409145,2689.7,2689.0,1.34042]
[1643681422209,4.78629305,2689.9,2689.0,1.34042]
[1643681422210,1.26409145,2689.8,2689.0,1.34042]
[1643681422411,1.26409145,2689.8,2689.0,2.34042]
[1643681423511,1.26409145,2689.8,2689.0,2.64042]
[1643681423972,1.26409145,2689.8,2689.0,2.34042]
[1643681424574,1.26409145,2689.8,2689.0,1.41085]
[1643681425175,1.26409145,2689.8,2689.0,1.11085]
[1643681425378,1.26409145,2689.8,2689.0,1.0]
[1643681425575,1.26409145,2689.8,2688.6,1.85938]
[1643681425576,0.88054584,2689.7,2688.6,1.85938]
[1643681425872,0.88054584,2689.7,2688.7,0.11085]
[1643681425873,1.26409145,2689.6,2688.7,0.11085]
[1643681426072,0.1859,2689.5,2688.7,0.11085]
[1643681426274,1.26409145,2689.4,2688.7,0.11085]
[1643681426479,1.26409145,2689.4,2688.8,0.92973]
[1643681426676,1.26409145,2689.3,2688.8,1.22973]
[1643681426878,1.26409145,2689.2,2688.8,1.22973]
[1643681427076,1.26409145,2689.1,2688.8,1.22973]
[1643681427280,0.69464584,2689.6,2689.0,0.11085]
[1643681427704,1.95934331,2689.6,2689.0,0.11085]
[1643681428512,1.95934331,2689.6,2688.8,0.92973]
[1643681428710,0.1859,2689.5,2688.8,0.92973]
[1643681429006,1.26469747,2689.4,2688.8,0.92973]
[1643681429229,1.26469747,2689.3,2688.8,0.92973]
[1643681429408,1.26469747,2689.2,2688.8,0.92973]
[1643681429606,1.26469747,2689.1,2688.8,0.92973]
[1643681429819,0.69464584,2689.5,2688.8,0.92973]
[1643681429820,1.26469747,2689.0,2688.8,0.92973]
[1643681430006,0.69464584,2689.5,2688.8,0.92973]
[1643681430007,1.26469747,2688.9,2688.8,0.92973]
[1643681430412,0.69464584,2689.5,2688.8,0.92973]
[1643681430612,0.69464584,2689.5,2688.9,2.0]
[1643681430811,1.26469747,2689.4,2689.1,0.92951]
[1643681431010,0.69464584,2689.9,2689.3,0.11085]
[1643681432063,1.96058258,2689.9,2689.3,0.11085]
[1643681432264,1.96058258,2689.9,2689.4,0.9295]
[1643681432661,1.96058258,2689.9,2689.4,1.2295]
[1643681434063,1.26593674,2689.8,2689.4,1.2295]
[1643681434262,0.88054584,2690.0,2689.4,1.2295]
[1643681434263,1.26593674,2689.7,2689.4,1.2295]
[1643681434462,1.26593674,2689.6,2689.4,1.2295]
[1643681434665,1.26593674,2689.5,2689.4,1.2295]
[1643681435013,1.96058258,2690.0,2689.4,1.2295]
[1643681435215,1.26593674,2689.9,2689.4,1.2295]
[1643681435415,1.26593674,2689.8,2689.4,1.2295]
[1643681435620,1.26593674,2689.7,2689.4,1.2295]
[1643681435814,1.26593674,2689.6,2689.4,2.2295]
[1643681436014,0.88054584,2690.1,2689.4,2.2295]
[1643681436015,1.26593674,2689.5,2689.4,2.2295]
[1643681436216,1.26593674,2690.0,2689.4,2.2295]
[1643681436421,0.88054584,2690.1,2689.4,2.2295]
[1643681436422,1.26593674,2689.9,2689.4,2.2295]
[1643681436618,1.26593674,2690.0,2689.4,2.2295]
[1643681439158,1.26593674,2689.9,2689.4,2.2295]
[1643681439357,1.26593674,2689.8,2689.4,2.2295]
[1643681439563,0.69464584,2690.0,2689.4,2.2295]
[1643681439564,1.26593674,2689.7,2689.4,2.2295]
[1643681439761,1.26593674,2689.6,2689.4,0.55952426]
[1643681439963,0.69464584,2689.9,2689.4,0.55952426]
[1643681439964,1.26593674,2689.5,2689.4,0.55952426]
[1643681440161,1.26593674,2689.5,2689.3,1.96981]
[1643681440365,1.26593674,2689.4,2689.3,1.96981]
[1643681441165,1.26593674,2689.4,2689.3,2.26981]
[1643681441365,0.69464584,2690.1,2689.3,6.73190857]
[1643681441566,1.2175,2690.2,2689.4,0.31209857]
[1643681441567,1.23479101,2690.0,2689.4,0.31209857]
[1643681441764,3.1208,2690.4,2689.4,1.31209857]
[1643681441765,1.23479101,2689.9,2689.4,1.31209857]
[1643681441967,1.23479101,2689.8,2689.5,0.1857]
[1643681442165,0.69464584,2690.3,2689.5,0.1857]
[1643681442166,1.23479101,2689.7,2689.5,0.1857]
[1643681442365,0.69464584,2690.3,2689.6,0.92932]
[1643681442616,1.92960295,2690.3,2689.8,0.92932]
[1643681442816,1.92960295,2690.3,2689.8,1.92932]
[1643681443017,1.92960295,2690.3,2689.8,2.22932]
[1643681443623,1.92960295,2690.3,2689.8,2.34017]
[1643681444023,1.23495711,2690.3,2689.8,2.34017]
[1643681444233,1.23495711,2690.2,2689.8,2.34017]
[1643681444423,1.23495711,2690.1,2689.8,2.34017]
[1643681444636,1.23495711,2690.0,2689.8,2.04017]
[1643681444921,1.23495711,2689.9,2689.7,1.85863]
[1643681445122,1.23495711,2689.8,2689.7,1.85863]
[1643681445519,0.69464584,2690.2,2689.7,1.85863]
[1643681445923,1.23495711,2690.2,2689.7,2.15863]
[1643681446122,1.23495711,2690.2,2689.7,1.85863]
[1643681446376,1.23495711,2690.1,2689.7,2.15863]
[1643681446573,1.23495711,2690.2,2689.7,2.15863]
[1643681446874,1.23495711,2690.1,2689.7,3.15863]
[1643681447076,1.23495711,2690.0,2689.7,3.15863]
[1643681447273,1.23495711,2689.9,2689.8,1.0]
[1643681447474,1.23495711,2689.9,2689.8,1.11085]
[1643681447676,1.92960295,2690.3,2689.7,1.85863]
[1643681447874,2.11530295,2690.2,2689.7,1.85863]
[1643681448075,1.23495711,2690.1,2689.7,1.85863]
[1643681448277,1.23495711,2690.0,2689.7,1.96948]
[1643681448478,0.69464584,2690.3,2689.7,1.96948]
[1643681448479,1.23495711,2689.9,2689.7,1.96948]
[1643681448676,0.75141442,2690.4,2689.8,0.11085]
[1643681448677,0.69464584,2690.2,2689.8,0.11085]
[1643681448874,0.69464584,2690.2,2689.7,1.85863]
[1643681449074,0.69464584,2690.2,2689.7,1.96948]
[1643681449275,0.69464584,2690.2,2689.7,1.85863]
[1643681449675,0.36447492,2689.9,2689.7,1.85863]
[1643681449881,1.2355888,2689.8,2689.2,1.11085]
[1643681450120,1.2355888,2689.8,2689.2,1.41085]
[1643681450544,1.05912076,2689.9,2689.1,3.85914]
[1643681450545,1.2355888,2689.7,2689.1,3.85914]
[1643681450727,0.94843567,2689.5,2689.1,1.85914]
[1643681451027,1.2355888,2689.4,2689.1,1.96999]
[1643681451220,1.2355888,2689.4,2689.3,0.11085]
[1643681451432,1.2355888,2689.4,2689.1,1.85914]
[1643681451725,1.2355888,2689.3,2689.1,1.85914]
[1643681451933,0.69464584,2689.8,2689.1,1.85914]
[1643681451934,1.2355888,2689.2,2689.1,1.85914]
[1643681452127,0.69464584,2689.8,2689.2,0.11085]
[1643681452128,1.89784584,2689.8,2689.2,0.11085]
[1643681452328,0.8345473,2689.5,2689.2,0.11085]
[1643681452526,1.23696585,2689.4,2689.2,0.11085]
[1643681452926,1.23696585,2689.4,2689.1,2.15914]
[1643681453129,1.23696585,2689.3,2689.2,0.31249429]
[1643681453427,1.10670526,2690.0,2689.2,6.18801618]
[1643681453428,0.69464584,2689.7,2689.2,6.18801618]
[1643681453633,1.23696585,2689.6,2689.3,0.31249429]
[1643681453861,0.88054584,2690.0,2689.3,1.31249429]
[1643681453862,1.23696585,2689.5,2689.3,1.31249429]
[1643681454063,0.68674592,2689.9,2689.4,0.31249429]
[1643681454268,1.23806193,2689.8,2689.4,2.30683085]
[1643681454465,1.23806193,2689.8,2689.5,0.31249429]
[1643681454664,1.23806193,2689.8,2689.4,2.9018579]
[1643681454863,1.23806193,2689.8,2689.5,0.31663326]
[1643681455064,1.23806193,2689.8,2689.5,1.31663326]
[1643681455264,1.23806193,2689.8,2689.6,0.31663326]
[1643681456466,1.23806193,2689.8,2689.4,1.22948]
[1643681456667,1.23806193,2689.8,2689.5,0.31686495]
[1643681456881,1.23806193,2689.8,2689.5,0.72771495]
[1643681457066,1.23806193,2689.8,2689.6,0.31686495]
[1643681457913,1.38139176,2689.9,2689.4,1.3]
[1643681458115,1.23806193,2689.8,2689.4,1.3]
[1643681458515,1.23806193,2689.9,2689.5,1.35734698]
[1643681458724,1.23806193,2689.8,2689.5,2.34038]
[1643681458919,1.23806193,2689.7,2689.5,2.34038]
[1643681459119,1.23806193,2689.6,2689.5,1.34038]
[1643681459323,0.69464584,2690.0,2689.5,1.65706776]
[1643681459521,0.76951724,2689.8,2689.5,1.34038]
[1643681459720,1.23806193,2689.7,2689.5,1.34038]
[1643681459916,1.23806193,2689.7,2689.6,0.34791149]
[1643681460117,1.23806193,2689.7,2689.3,2.15894]
[1643681460318,1.23806193,2689.6,2689.4,0.34807581]
[1643681460516,1.23806193,2689.5,2689.4,0.34807581]
[1643681460923,1.23806193,2689.5,2689.2,1.85908]
[1643681461124,1.42396193,2689.4,2689.3,0.34815382]
[1643681461374,1.42396193,2689.4,2688.7,1.88390407]
[1643681461375,1.23806193,2689.4,2688.7,1.88390407]
[1643681461579,1.42396193,2689.3,2688.8,0.34823412]
[1643681461779,1.23806193,2689.2,2688.8,0.34823412]
[1643681461976,1.23806193,2689.1,2688.8,0.34823412]
[1643681462276,1.23806193,2689.0,2688.8,0.34823412]
[1643681462477,0.8643876,2689.3,2688.8,0.34823412]
[1643681462675,1.20316076,2689.2,2688.8,0.34823412]
[1643681463078,1.20316076,2689.2,2688.9,1.85929]
[1643681463278,1.20316076,2689.5,2689.0,0.34823412]
[1643681463476,1.20316076,2689.4,2689.0,0.34823412]
[1643681463675,1.20316076,2689.3,2689.0,0.34823412]
[1643681463875,1.20316076,2689.2,2689.0,0.34823412]
[1643681464085,1.20316076,2689.1,2689.0,3.49823412]
[1643681464276,1.20316076,2689.1,2689.0,4.49823412]
[1643681464476,1.20316076,2689.3,2689.0,5.72787412]
[1643681464678,1.20304448,2689.2,2689.1,1.34823412]
[1643681465520,1.89769032,2689.7,2689.1,1.34823412]
[1643681465718,0.01226074,2690.1,2689.3,6.75]
[1643681465923,1.2194348,2691.1,2690.0,1.0129196]
[1643681465924,1.85843986,2691.1,2690.0,1.0129196]
[1643681466224,0.012283,2692.2,2690.0,1.0129196]
[1643681466225,1.42739146,2691.0,2690.6,1.0]
[1643681466425,1.85843986,2692.3,2690.9,0.221231]
[1643681466629,0.98061985,2692.2,2691.0,1.06902412]
[1643681466821,2.05843986,2692.5,2691.0,1.06902412]
[1643681466822,0.93061985,2692.1,2691.1,24.23393412]
[1643681467026,0.93061985,2692.0,2691.8,0.01247083]
[1643681467222,0.1,2692.5,2691.9,0.72079]
[1643681467522,1.00993429,2692.4,2691.9,0.835]
[1643681467723,0.83583429,2692.3,2691.9,0.835]
[1643681467924,0.1,2692.5,2691.9,1.135]
[1643681467925,0.83583429,2692.2,2691.9,1.135]
[1643681468126,0.1,2692.5,2692.2,0.92866]
[1643681468345,0.83430045,2692.4,2692.2,0.92866]
[1643681468526,0.83430045,2692.4,2692.2,1.22866]
[1643681468967,0.83430045,2692.4,2692.2,0.92866]
[1643681469172,0.83430045,2692.4,2691.6,4.60479]
[1643681469173,0.1741,2692.3,2691.6,2.8573]
[1643681469566,0.1741,2692.3,2691.6,1.8573]
[1643681469567,0.83430045,2692.2,2691.6,1.8573]
[1643681469767,0.1741,2692.1,2691.6,1.8573]
[1643681469975,0.83430045,2692.0,2691.6,2.8573]
[1643681470171,0.83430045,2692.0,2691.7,1.85747]
[1643681470370,0.83430045,2691.9,2691.7,1.85747]
[1643681470594,0.83430045,2691.8,2691.5,2.786289]
[1643681470768,0.83430045,2691.8,2691.4,1.99584557]
[1643681470769,0.83430045,2691.7,2691.4,1.99584557]
[1643681470971,0.1741,2692.4,2691.4,0.13819997]
[1643681471167,0.83211205,2692.3,2691.4,0.13819997]
[1643681471376,0.1741,2692.2,2691.4,0.13819997]
[1643681471570,0.83211205,2692.1,2691.4,0.13819997]
[1643681471775,0.1741,2692.0,2691.4,0.73819997]
[1643681471972,0.83211205,2691.9,2691.4,0.73819997]
[1643681472172,0.83211205,2691.9,2691.5,0.18579]
[1643681472374,0.83211205,2691.8,2691.4,1.66701997]
[1643681472613,0.83211205,2691.7,2691.4,1.66701997]
[1643681472817,0.4481233,2691.9,2691.4,1.06701997]
[1643681473029,0.4481233,2691.9,2691.0,3.11992996]
[1643681473030,1.00482932,2691.8,2691.0,0.25]
[1643681473319,0.83072932,2691.7,2690.8,1.99601627]
[1643681473519,0.1741,2691.6,2690.8,2.18180627]
[1643681473726,0.83072932,2691.5,2690.8,1.99601627]
[1643681474121,0.83072932,2691.4,2690.8,2.92503627]
[1643681474332,0.8298878,2691.8,2690.8,2.92503627]
[1643681474333,0.83072932,2691.3,2690.8,2.92503627]
[1643681474522,0.33170672,2691.5,2690.8,2.92503627]
[1643681474725,0.83035339,2691.4,2690.8,2.92503627]
[1643681475324,0.83035339,2691.4,2690.8,1.06721997]
[1643681475519,0.83035339,2691.4,2690.8,1.36721997]
[1643681475723,0.83035339,2691.3,2690.8,2.36721997]
[1643681475929,0.83035339,2691.2,2690.8,2.36721997]
[1643681476266,0.1741,2691.7,2690.8,0.13819997]
[1643681476472,0.83060276,2691.6,2690.8,0.13819997]
[1643681476670,0.1741,2691.5,2690.8,0.13819997]
[1643681476875,0.39053736,2691.3,2690.8,0.13819997]
[1643681477071,0.83060276,2691.2,2690.8,0.13819997]
[1643681477669,0.1741,2691.7,2690.8,0.13819997]
[1643681477870,0.83054629,2691.6,2690.8,0.13819997]
[1643681478070,0.1741,2691.5,2690.8,0.13819997]
[1643681478271,0.83054629,2691.4,2690.8,0.13819997]
[1643681478470,0.83054629,2691.3,2690.8,0.13819997]
[1643681478669,0.83054629,2691.2,2690.8,0.13819997]
[1643681478870,0.43576157,2691.5,2690.8,0.13819997]
[1643681479095,0.83053563,2691.4,2690.8,0.13819997]
[1643681480015,0.83053563,2691.4,2690.6,0.1857]
[1643681480315,0.83053563,2691.4,2690.5,5.07014]
[1643681480316,0.83053563,2691.4,2690.5,5.25584]
[1643681480916,0.83053563,2691.4,2690.5,5.55584]
[1643681481116,0.83053563,2691.4,2690.6,1.0]
[1643681481322,0.83053563,2691.4,2690.6,1.1857]
[1643681482127,0.83053563,2691.3,2690.6,1.0]
[1643681482327,0.83053563,2691.2,2690.6,1.1857]
[1643681482525,0.83053563,2691.1,2690.6,1.1857]
[1643681482725,0.1741,2691.7,2690.6,1.1857]
[1643681482928,0.79920858,2691.6,2690.6,1.1857]
[1643681483326,1.17223448,2691.6,2690.6,1.1857]
[1643681483525,0.79920858,2691.5,2690.6,1.1857]
[1643681484973,0.79920858,2691.4,2690.6,1.1857]
[1643681485271,0.79920858,2691.3,2690.6,1.1857]
[1643681485494,0.79920858,2691.2,2690.7,0.92901]
[1643681485672,0.79920858,2691.1,2690.7,0.92901]
[1643681485874,1.26616727,2691.7,2690.7,1.22901]
[1643681486074,0.79943118,2691.6,2690.7,1.22901]
[1643681487075,0.79943118,2691.6,2690.8,0.9290087]
[1643681487517,0.79943118,2691.6,2691.0,0.92896]
[1643681488723,0.79943118,2691.6,2691.0,1.22896]
[1643681488922,0.79943118,2691.6,2691.0,0.3]
[1643681489123,0.79943118,2691.5,2691.0,0.3]
[1643681489325,0.79943118,2691.4,2690.8,1.11473]
[1643681489522,0.79943118,2691.3,2690.8,0.92903]
[1643681489723,0.1741,2691.7,2690.8,0.92903]
[1643681489724,0.79943118,2691.2,2690.8,1.22903]
[1643681489932,0.79943118,2691.1,2690.8,0.92903]
[1643681490122,0.1741,2691.7,2690.8,0.92903]
[1643681490321,0.79946521,2691.6,2690.8,0.92903]
[1643681490523,0.79946521,2691.6,2690.8,1.22903]
[1643681490821,0.79946521,2691.6,2690.8,0.92903]
[1643681491262,0.79946521,2691.6,2690.8,1.22903]
[1643681491868,0.79946521,2691.5,2690.8,1.22903]
[1643681492068,0.79946521,2691.4,2690.8,1.22903]
[1643681492270,0.79946521,2691.3,2690.8,1.22903]
[1643681492472,0.79946521,2691.2,2690.8,1.22903]
[1643681492668,0.79946521,2691.1,2690.8,1.22903]
[1643681492868,0.79946521,2691.6,2690.8,1.22903]
[1643681493071,0.79946521,2691.5,2690.8,1.41482]
[1643681493277,0.79946521,2691.4,2690.8,2.64377]
[1643681493476,0.79946521,2691.3,2691.0,0.9289]
[1643681493673,0.1741,2692.0,2691.0,1.2289]
[1643681493871,0.79902061,2691.9,2691.0,1.2289]
[1643681494074,0.79902061,2691.9,2691.0,2.83488983]
[1643681494376,0.79902061,2691.9,2691.2,0.92886]
[1643681494570,2.0445189,2692.5,2691.3,0.90649]
[1643681494571,0.79902061,2691.8,2691.3,0.90649]
[1643681494772,0.79902061,2691.7,2691.3,2.20649]
[1643681495064,0.79902061,2691.6,2691.3,2.20649]
[1643681495324,4.54618591,2692.6,2691.5,4.03579]
[1643681495523,0.79920481,2692.5,2691.6,0.7207]
[1643681495722,0.79920481,2692.4,2691.7,0.18579]
[1643681495922,0.79920481,2692.3,2691.8,0.1857]
[1643681496121,0.79920481,2692.2,2691.9,0.18579]
[1643681496326,2.07288591,2692.7,2691.7,3.24947]
[1643681496327,0.79920481,2692.1,2691.7,3.24947]
[1643681496527,0.79920481,2692.0,2691.8,0.1857]
[1643681496730,0.79920481,2691.9,2691.8,0.1857]
[1643681497158,1.72129072,2692.7,2691.8,0.1857]
[1643681497334,0.79920481,2692.6,2691.8,0.1857]
[1643681497530,0.92208591,2692.7,2691.8,0.1857]
[1643681497531,0.79920481,2692.5,2691.8,0.1857]
[1643681497726,0.79920481,2692.4,2691.7,4.3638051]
[1643681497929,0.79920481,2692.3,2691.7,4.1781051]
[1643681498127,0.79920481,2692.2,2691.7,4.1781051]
[1643681498328,1.09618591,2692.7,2691.7,4.1781051]
[1643681498329,0.79920481,2692.1,2691.8,0.3]
[1643681498527,0.79920481,2692.0,2691.8,1.3]
[1643681498973,0.79920481,2691.9,2691.6,0.1857]
[1643681499173,0.79920481,2691.8,2691.4,1.135]
[1643681499375,0.79920481,2691.7,2691.5,1.0]
[1643681499572,0.79920481,2691.6,2691.4,1.835]
[1643681499774,0.79920481,2691.5,2691.4,1.835]
[1643681500177,0.79920481,2691.5,2691.4,3.6924988]
[1643681500373,0.1741,2692.3,2691.4,2.02375921]
[1643681500574,0.8001084,2692.2,2691.4,4.01633843]
[1643681500774,0.8001084,2692.1,2691.4,4.01633843]
[1643681500975,0.8001084,2692.0,2691.4,4.01633843]
[1643681501174,0.8001084,2691.9,2691.4,2.02379801]
[1643681501379,0.8001084,2691.8,2691.4,1.9287688]
[1643681501579,1.09618591,2692.5,2691.3,2.05837]
[1643681501580,0.8001084,2691.7,2691.3,2.05837]
[1643681501778,0.8001084,2691.6,2691.3,1.85747]
[1643681502078,0.1741,2692.3,2691.3,1.85747]
[1643681502284,1.4932129,2692.2,2691.3,1.85747]
[1643681502516,0.97406392,2692.1,2691.3,1.85747]
[1643681502722,0.79996392,2692.0,2691.3,3.45747]
[1643681503726,0.79996392,2691.9,2691.3,3.45747]
[1643681503926,0.79996392,2691.8,2691.3,3.45747]
[1643681504130,0.79996392,2691.7,2691.3,3.64326]
[1643681504327,0.79996392,2691.6,2691.3,3.64326]
[1643681504523,0.79996392,2691.5,2691.3,3.64326]
[1643681504721,0.69324898,2692.1,2691.3,3.64326]
[1643681505226,1.49415551,2692.1,2691.3,3.64326]
[1643681505420,0.80090653,2692.0,2691.3,3.64326]
[1643681505621,0.80090653,2691.9,2691.3,3.64326]
[1643681505823,0.80090653,2691.8,2691.4,3.87417496]
[1643681506022,0.80090653,2691.7,2691.4,3.87417496]
[1643681506266,0.80090653,2691.6,2691.5,4.55]
[1643681506471,0.80090653,2691.6,2691.5,4.92135]
[1643681506672,0.80090653,2691.6,2691.5,1.97135]
[1643681506971,0.69324898,2692.3,2691.5,1.97135]
[1643681507172,0.76971803,2692.2,2691.5,0.67135]
[1643681507374,0.76971803,2692.1,2691.5,1.67135]
[1643681507574,0.76971803,2692.0,2691.6,0.92874]
[1643681507814,0.76971803,2691.9,2691.6,1.92874]
[1643681507975,0.76971803,2691.8,2691.6,2.22874]
[1643681508176,0.69324898,2692.3,2691.7,0.18565]
[1643681509175,0.69324898,2692.3,2691.8,0.9286549]
[1643681509575,0.69324898,2692.3,2691.9,0.3]
[1643681509776,0.69324898,2692.2,2691.9,0.3]
[1643681510022,0.69324898,2692.2,2691.8,0.18565]
[1643681510220,0.69324898,2692.2,2691.8,1.41433]
[1643681510622,0.69324898,2692.2,2691.8,1.11433]
[1643681510821,1.4633585,2692.1,2691.8,1.71433]
[1643681511122,1.4633585,2692.1,2691.8,0.3]
[1643681511325,1.4633585,2692.1,2691.6,0.7857]
[1643681511326,0.77010952,2692.0,2691.6,0.7857]
[1643681511524,0.69324898,2692.0,2691.7,0.18565]
[1643681511724,0.69324898,2692.1,2691.7,0.18565]
[1643681512325,1.4633585,2692.1,2691.7,0.18565]
[1643681512524,0.77010952,2692.0,2691.7,0.18565]
[1643681512725,0.77010952,2691.9,2691.7,0.18565]
[1643681512930,0.69324898,2692.1,2691.8,0.18565]
[1643681513427,1.46522031,2692.1,2692.0,0.18565]
[1643681513908,0.77197133,2692.1,2692.0,0.18565]
[1643681514289,0.69324898,2692.3,2692.0,0.48565]
[1643681515090,0.69324898,2692.3,2692.1,1.8570145]
[1643681516495,0.69324898,2692.3,2692.0,1.48565]
[1643681516893,0.69324898,2692.3,2692.0,0.48565]
[1643681517094,0.69324898,2692.3,2692.0,0.3]
[1643681517297,0.69324898,2692.3,2691.8,2.52867]
[1643681518723,0.69324898,2692.3,2692.0,0.3]
[1643681518919,0.77181252,2692.2,2692.1,0.92859]
[1643681520329,0.77181252,2692.2,2692.1,2.7855635]
[1643681520529,0.77181252,2692.2,2692.1,10.06828737]
[1643681520733,0.77181252,2692.2,2692.1,11.25398737]
[1643681520925,0.77181252,2692.2,2692.1,33.25398737]
[1643681521130,0.69324898,2693.0,2692.3,0.92831]
[1643681521400,0.69324898,2693.0,2692.5,1.85668]
[1643681521594,0.69324898,2693.0,2692.6,0.7205]
[1643681521895,0.69324898,2693.1,2692.7,0.92833]
[1643681522098,0.69324898,2693.1,2692.8,0.18565]
[1643681522495,0.69324898,2693.1,2692.7,2.45662]
[1643681522693,0.69324898,2693.1,2692.8,0.18565]
[1643681523096,0.69324898,2693.2,2692.8,0.18565]
[1643681523352,0.69324898,2693.6,2692.9,23.37173]
[1643681523499,0.69324898,2693.7,2693.1,1.74749]
[1643681523695,0.69324898,2693.7,2693.2,0.72065]
[1643681523900,0.69324898,2693.8,2693.2,1.02065]
[1643681524100,2.63278711,2694.3,2693.2,1.02065]
[1643681524101,0.69324898,2693.9,2693.2,25.02065]
[1643681524298,0.69324898,2693.9,2693.3,1.85604]
[1643681524503,0.69324898,2693.8,2693.3,0.535]
[1643681524701,0.69324898,2693.8,2693.3,2.02065]
[1643681524897,0.69324898,2693.9,2693.3,1.02065]
[1643681525120,0.86734898,2694.0,2693.3,2.02065]
[1643681525324,0.69324898,2694.0,2693.3,1.02065]
[1643681525529,0.69324898,2694.0,2693.3,2.02065]
[1643681525826,0.86734898,2694.1,2693.3,4.0168054]
[1643681526022,0.86734898,2694.2,2693.4,0.9280526]
[1643681526225,0.86734898,2694.2,2693.4,1.22804]
[1643681526426,0.69324898,2694.2,2693.4,2.22804]
[1643681526627,0.69324898,2694.1,2693.5,0.18565]
[1643681526826,0.69324898,2694.2,2693.5,0.18565]
[1643681527028,0.69324898,2694.2,2693.4,1.22804]
[1643681527330,0.69324898,2694.1,2693.4,2.22804]
[1643681527631,1.76868378,2694.3,2693.4,4.3435444]
[1643681527826,1.76868378,2694.3,2693.4,5.3435444]
[1643681528530,1.0754348,2694.3,2693.4,5.3435444]
[1643681528773,1.0754348,2694.3,2693.4,5.5291444]
[1643681529170,1.76868378,2694.3,2693.4,5.5291444]
[1643681529371,1.76868378,2694.3,2693.4,3.527335]
[1643681529574,1.76868378,2694.3,2693.4,2.59929]
[1643681529770,0.0742,2694.2,2693.4,0.92804]
[1643681529971,0.0742,2694.2,2693.4,1.11369]
[1643681530270,0.0742,2694.2,2693.4,0.92804]
[1643681531073,0.0742,2694.2,2693.4,1.52804]
[1643681531473,1.1496348,2694.3,2693.5,2.24313552]
[1643681531675,1.1496348,2694.3,2693.5,0.48565]
[1643681531974,1.1496348,2694.3,2693.5,1.48565]
[1643681532181,1.1496348,2694.3,2693.7,0.92793]
[1643681532376,1.0754348,2694.3,2693.7,3.80517774]
[1643681532616,1.0754348,2694.3,2693.7,2.06293]
[1643681533022,1.0754348,2694.3,2693.7,2.24858]
[1643681534025,1.0754348,2694.3,2693.7,3.1764757]
[1643681534222,1.0754348,2694.3,2693.8,1.0]